bitfinex/quotes_SOLUSD_20241209
["timestamp","ask_amount","ask_price","bid_price","bid_amount"]
[1733743362538,44.659677,227.02,226.95,12.83906131]
[1733743362747,44.659677,227.02,226.94,12.83906131]
[1733743363038,44.659677,227.02,226.92,12.83906131]
[1733743363250,44.659677,227.02,226.92,13.49984048]
[1733743364245,44.659677,227.02,226.92,0.66077917]
[1733743364725,44.659677,227.02,226.89,12.83906131]
[1733743364932,44.659677,227.02,226.9,0.66088647]
[1733743365134,44.659677,227.02,226.9,13.49994778]
[1733743365432,44.659677,227.02,226.91,12.83906131]
[1733743365625,44.659677,227.02,226.92,13.49982807]
[1733743365830,44.659677,227.02,226.93,12.83906131]
[1733743366039,44.659677,227.02,226.95,12.83906131]
[1733743366337,44.659677,227.02,226.96,13.49973097]
[1733743366929,44.659677,227.02,226.96,0.66066966]
[1733743367330,44.659677,227.02,226.95,13.49976006]
[1733743367542,44.659677,227.02,226.96,12.83906131]
[1733743367715,44.659677,227.02,226.97,0.66067777]
[1733743368139,44.659677,227.02,226.97,13.49973908]
[1733743368325,44.659677,227.02,226.97,0.66067777]
[1733743368831,44.659677,227.02,226.96,0.6606683]
[1733743372651,44.659677,227.02,226.9,12.83906131]
[1733743372955,44.659677,227.02,226.89,13.4997523]
[1733743373447,20.0,226.99,226.89,0.66069099]
[1733743375826,44.659677,227.02,226.93,12.83906131]
[1733743376155,44.659677,227.02,226.94,13.49979615]
[1733743377227,44.659677,227.02,226.94,0.66073484]
[1733743378557,44.659677,227.02,226.91,12.83906131]
[1733743378720,44.659677,227.02,226.91,13.49983585]
[1733743379228,44.659677,227.02,226.92,12.83906131]
[1733743379736,44.659677,227.02,226.92,13.49981457]
[1733743380661,44.659677,227.02,226.92,12.83906131]
[1733743381358,44.659677,227.02,226.93,0.66077374]
[1733743383081,44.659677,227.02,226.96,12.83906131]
[1733743383352,44.659677,227.02,226.97,0.66068358]
[1733743383875,44.659677,227.02,226.98,12.83906131]
[1733743384077,44.659677,227.02,226.9,13.22]
[1733743384078,44.659677,227.02,227.01,12.83906131]
[1733743384374,6.4491,227.1,227.06,92.340323]
[1733743384578,6.4491,227.1,227.05,12.83906131]
[1733743384883,6.4491,227.1,227.06,0.66043385]
[1733743385053,6.4491,227.1,227.02,12.83906131]
[1733743385259,6.4491,227.1,226.98,12.83906131]
[1733743385451,6.4491,227.1,226.97,12.83906131]
[1733743385651,6.4491,227.1,226.96,12.83906131]
[1733743386045,20.0,227.07,226.96,13.49970238]
[1733743386469,20.0,227.07,226.98,12.83906131]
[1733743386775,6.4491,227.1,226.99,13.49964516]
[1733743387154,6.4491,227.1,226.99,0.66058385]
[1733743387468,20.0,227.07,226.99,0.66058385]
[1733743387647,20.0,227.07,227.0,0.66055792]
[1733743387845,6.4491,227.1,227.0,13.49961923]
[1733743388277,6.4491,227.1,227.0,0.66055792]
[1733743388667,6.4491,227.1,227.01,0.66052677]
[1733743389670,6.4491,227.1,227.02,0.66049374]
[1733743390677,6.4491,227.1,227.01,0.66047738]
[1733743392366,6.4491,227.1,226.98,8.86444645]
[1733743393445,6.4491,227.1,226.98,0.66051198]
[1733743393653,6.4491,227.1,226.99,8.20393447]
[1733743393990,6.4491,227.1,227.0,0.66052776]
[1733743394884,6.4491,227.1,226.98,0.66056608]
[1733743397981,6.4491,227.1,227.0,8.20393447]
[1733743398156,6.4491,227.1,227.01,8.86442253]
[1733743398678,6.4491,227.1,227.02,8.20393447]
[1733743398888,6.4491,227.1,227.03,0.66044004]
[1733743400370,6.4491,227.1,227.0,0.66049898]
[1733743404183,6.4491,227.1,227.02,8.20393447]
[1733743404373,6.4491,227.1,227.03,8.86437159]
[1733743405878,6.4491,227.1,227.03,0.66043712]
[1733743407202,1.5505,227.13,227.06,8.20393447]
[1733743407376,1.5505,227.13,227.07,8.86426017]
[1733743408097,1.5505,227.13,227.08,8.20393447]
[1733743408299,1.5505,227.13,227.09,0.66028874]
[1733743409000,6.4613,227.16,227.09,8.86422321]
[1733743411206,1.6529,227.18,227.1,8.20393447]
[1733743411499,1.6529,227.18,227.11,0.6601682]
[1733743413221,1.6529,227.18,227.06,20.0]
[1733743413511,1.6529,227.18,227.04,0.66031669]
[1733743413724,20.0,227.14,227.01,0.66031669]
[1733743414587,20.0,227.14,227.0,8.86444767]
[1733743414785,20.0,227.14,227.01,8.20393447]
[1733743414985,20.0,227.14,227.02,0.66049179]
[1733743416894,1.5625,227.13,226.99,12.81680188]
[1733743417094,1.5625,227.13,227.0,0.66053623]
[1733743417512,1.5625,227.13,227.0,13.47733811]
[1733743418218,1.5625,227.13,227.0,0.66053623]
[1733743419402,1.5625,227.13,226.99,0.6605833]
[1733743420321,1.5625,227.13,226.99,13.47738518]
[1733743421006,1.5625,227.13,227.0,12.81680188]
[1733743421320,1.5625,227.13,227.01,0.66053497]
[1733743423014,1.5625,227.13,227.01,13.47733685]
[1733743424514,1.5625,227.13,227.01,0.66053497]
[1733743425496,1.5625,227.13,227.02,0.66051268]
[1733743426496,1.5625,227.13,227.03,0.66052239]
[1733743426691,1.5625,227.13,227.03,13.47732427]
[1733743427521,1.5625,227.13,227.04,12.81680188]
[1733743427803,1.5625,227.13,227.05,0.6603691]
[1733743428007,1.5625,227.13,227.07,12.81680188]
[1733743428228,1.5625,227.13,227.08,0.66031761]
[1733743428594,1.5625,227.13,227.08,13.47711949]
[1733743428791,6.0932,227.17,227.08,13.47711949]
[1733743428792,6.0932,227.17,227.1,12.81680188]
[1733743428995,6.0932,227.17,227.11,0.66023184]
[1733743430321,6.0932,227.17,227.09,0.66029078]
[1733743431093,6.0932,227.17,227.08,0.66029283]
[1733743431428,6.0932,227.17,227.1,0.66029283]
[1733743432358,6.0932,227.17,227.11,0.66028118]
[1733743433303,20.0,227.14,226.96,13.81528264]
[1733743433636,20.0,227.14,226.97,0.66049586]
[1733743433637,1.5815,227.13,226.97,0.66049586]
[1733743433805,1.5815,227.13,226.98,12.81680188]
[1733743434138,1.5815,227.13,226.97,0.66049586]
[1733743434436,6.1355,227.12,226.96,13.47740819]
[1733743435425,20.0,227.09,226.93,8.20583477]
[1733743435725,20.0,227.09,226.92,8.86643326]
[1733743436026,20.0,227.09,226.93,8.20583477]
[1733743436253,20.0,227.09,226.94,8.8665016]
[1733743436950,20.0,227.09,226.95,8.20583477]
[1733743437125,20.0,227.09,226.96,0.66066054]
[1733743439945,20.0,227.09,226.91,0.66068357]
[1733743440150,1.5187,227.08,226.93,8.20583477]
[1733743440750,1.5187,227.08,226.94,0.6606969]
[1733743440935,20.0,227.04,226.94,0.6606969]
[1733743443059,20.0,227.04,226.91,28.20583477]
[1733743443243,20.0,227.04,226.92,8.86660516]
[1733743443440,20.0,227.04,226.93,8.20583477]
[1733743444354,20.0,227.04,226.92,0.66077039]
[1733743444355,20.0,227.04,226.94,8.86660434]
[1733743445130,20.0,227.04,226.91,0.66071626]
[1733743445371,20.0,227.04,226.92,8.20583477]
[1733743446329,20.0,227.04,226.93,8.20583477]
[1733743448134,20.0,227.04,226.93,8.20583477]
[1733743449027,20.0,227.0,226.87,81.1]
[1733743449246,20.0,227.0,226.87,8.86674357]
[1733743449438,20.0,227.0,226.83,18.29166929]
[1733743449649,20.0,227.0,226.84,8.20583477]
[1733743449929,1.6455,226.99,226.84,8.20583477]
[1733743452239,1.6455,226.99,226.85,0.66100108]
[1733743453847,1.6455,226.99,226.83,8.20583477]
[1733743453848,20.0,226.95,226.83,8.20583477]
[1733743454936,20.0,226.95,226.82,8.86681921]
[1733743456136,20.0,226.95,226.82,0.66098444]
[1733743456335,1.6213,226.94,226.81,8.20583477]
[1733743458136,1.6213,226.94,226.82,8.86693564]
[1733743458356,1.6213,226.94,226.83,8.20583477]
[1733743459588,1.6213,226.94,226.82,8.86690266]
[1733743462066,1.6213,226.94,226.79,0.66108883]
[1733743462277,20.0,226.9,226.77,8.20583477]
[1733743462573,1.6366,226.89,226.75,8.8670188]
[1733743462765,1.6366,226.89,226.76,8.20583477]
[1733743463345,1.6366,226.89,226.75,8.8670188]
[1733743464284,6.0965,226.88,226.7,2.0]
[1733743464479,20.0,226.85,226.72,8.20583477]
[1733743464685,20.0,226.85,226.71,8.20583477]
[1733743464845,20.0,226.85,226.71,8.86722661]
[1733743466159,20.0,226.85,226.71,0.66139184]
[1733743466363,1.6292,226.84,226.7,2.0]
[1733743466560,20.0,226.8,226.7,2.0]
[1733743467056,6.3386,226.83,226.74,8.20583477]
[1733743467246,6.3386,226.83,226.76,8.20583477]
[1733743467448,6.3386,226.83,226.79,8.20583477]
[1733743467665,1.6292,226.84,226.81,8.20583477]
[1733743467990,7.9678,226.89,226.83,8.20583477]
[1733743468283,1.5342,226.95,226.87,8.20583477]
[1733743468445,1.5342,226.95,226.88,8.86679524]
[1733743468846,1.5342,226.95,226.88,0.66096047]
[1733743469072,1.5342,226.95,226.87,8.20583477]
[1733743469367,1.5342,226.95,226.87,12.8324071]
[1733743470356,1.5342,226.95,226.84,0.66092811]
[1733743470564,1.5342,226.95,226.82,12.8324071]
[1733743471381,1.5342,226.95,226.8,12.8324071]
[1733743471568,20.0,226.93,226.8,13.49350903]
[1733743472481,20.0,226.93,226.79,12.8324071]
[1733743472782,20.0,226.93,226.81,12.8324071]
[1733743473253,20.0,226.93,226.8,13.49353942]
[1733743473449,20.0,226.93,226.8,0.66113232]
[1733743474455,20.0,226.93,226.8,13.49353942]
[1733743474877,20.0,226.93,226.81,12.8324071]
[1733743475179,20.0,226.93,226.81,13.49347073]
[1733743476366,20.0,226.93,226.82,12.8324071]
[1733743476562,20.0,226.93,226.82,13.49343563]
[1733743477075,20.0,226.93,226.82,0.66102853]
[1733743477975,20.0,226.93,226.82,13.49343563]
[1733743478160,1.5342,226.95,226.84,12.8324071]
[1733743478485,1.5342,226.95,226.82,0.66102853]
[1733743478486,1.5342,226.95,226.87,12.8324071]
[1733743478780,1.5342,226.95,226.88,13.49329008]
[1733743478947,1.5342,226.95,226.83,20.66087927]
[1733743479594,20.0,226.93,226.81,12.8324071]
[1733743480570,20.0,226.93,226.82,0.66109747]
[1733743480881,20.0,226.93,226.82,13.49350457]
[1733743481951,20.0,226.93,226.82,0.66109747]
[1733743485154,20.0,226.93,226.82,13.49350457]
[1733743485649,1.5342,226.95,226.82,13.49350457]
[1733743486290,1.5342,226.95,226.82,0.66109747]
[1733743486780,20.0,226.93,226.78,0.66105067]
[1733743487003,20.0,226.88,226.75,0.66119993]
[1733743487462,1.5334,226.87,226.75,0.66119993]
[1733743487981,1.5334,226.87,226.71,12.8324071]
[1733743488183,1.5334,226.87,226.7,15.49372036]
[1733743488394,20.0,226.83,226.7,15.49372036]
[1733743489255,20.0,226.83,226.7,2.66131326]
[1733743489458,1.5675,226.82,226.7,2.66131326]
[1733743490267,6.6443,226.81,226.7,2.0]
[1733743490473,20.0,226.78,226.7,2.0]
[1733743492159,1.6658,226.77,226.7,2.0]
[1733743493692,20.0,226.73,226.7,2.0]
[1733743499991,1.6444,226.72,226.7,2.0]
[1733743501401,1.6444,226.72,226.7,0.3334]
[1733743502300,1.6444,226.72,226.67,1.0]
[1733743502491,20.0,226.68,226.67,1.0]
[1733743503519,20.0,226.68,226.59,1.0]
[1733743510252,1.766331,226.78,226.56,1.0]
[1733743510253,20.0,226.64,226.56,1.0]
[1733743510706,6.5408,226.66,226.56,1.0]
[1733743510913,20.0,226.62,226.54,1.0]
[1733743511141,0.0619591,226.7,226.54,1.0]
[1733743511142,20.0,226.58,226.54,1.0]
[1733743511510,20.0,226.58,226.38,1.5045]
[1733743511719,20.0,226.55,226.38,1.5045]
[1733743511945,20.0,226.55,226.39,12.88586158]
[1733743512244,20.0,226.55,226.33,2.16685898]
[1733743512245,1.5122,226.54,226.33,2.16685898]
[1733743512441,6.5408,226.53,226.35,12.88586158]
[1733743512944,6.5408,226.53,226.36,12.88586158]
[1733743512945,20.0,226.5,226.36,12.88586158]
[1733743513157,20.0,226.5,226.39,12.88586158]
[1733743513438,20.0,226.5,226.4,12.88586158]
[1733743513616,20.0,226.5,226.37,0.66244649]
[1733743513617,20.0,226.5,226.42,12.88586158]
[1733743513816,20.0,226.5,226.41,12.88586158]
[1733743514035,20.0,226.5,226.42,12.88586158]
[1733743514241,6.4304,226.58,226.45,12.88586158]
[1733743515224,6.4304,226.58,226.47,12.88586158]
[1733743515556,6.4304,226.58,226.5,12.88586158]
[1733743515725,1.5129,226.59,226.5,12.88586158]
[1733743515915,6.4304,226.63,226.5,12.88586158]
[1733743516316,6.4304,226.63,226.51,12.88586158]
[1733743516539,6.4304,226.63,226.52,12.88586158]
[1733743516745,6.4304,226.63,226.53,12.88586158]
[1733743517244,6.4304,226.63,226.51,12.88586158]
[1733743518030,6.4304,226.63,226.53,12.88586158]
[1733743518343,20.0,226.6,226.5,12.88586158]
[1733743518547,20.0,226.6,226.51,12.88586158]
[1733743518746,6.4304,226.63,226.52,12.88586158]
[1733743518949,6.4304,226.63,226.5,12.88586158]
[1733743519256,20.0,226.6,226.5,12.88586158]
[1733743519426,20.0,226.6,226.52,12.88586158]
[1733743519851,20.0,226.6,226.51,12.88586158]
[1733743520029,6.4304,226.63,226.53,12.88586158]
[1733743520235,82.5,227.14,226.48,1.17375238]
[1733743520236,6.6047,226.69,226.58,12.88586158]
[1733743520443,6.6047,226.69,226.54,0.66203771]
[1733743520444,6.6047,226.69,226.59,12.88586158]
[1733743520923,6.6047,226.69,226.61,12.88586158]
[1733743521123,1.6057,226.72,226.62,12.88586158]
[1733743521355,1.6057,226.72,226.63,12.88586158]
[1733743521557,6.6047,226.74,226.55,7.749]
[1733743521558,6.6047,226.74,226.66,12.88586158]
[1733743521943,6.6047,226.74,226.65,12.88586158]
[1733743522153,6.6047,226.74,226.63,12.88586158]
[1733743522471,6.6047,226.74,226.62,12.88586158]
[1733743523051,1.6057,226.78,226.55,7.749]
[1733743523052,1.6057,226.78,226.66,12.88586158]
[1733743523252,6.6071,226.79,226.67,13.54743134]
[1733743523462,6.6071,226.79,226.68,12.88586158]
[1733743523760,1.6013,226.84,226.72,12.88586158]
[1733743523928,1.6013,226.84,226.74,12.88586158]
[1733743524125,6.6071,226.86,226.75,13.54722024]
[1733743525033,6.6071,226.86,226.76,12.88586158]
[1733743525660,6.16,226.91,226.8,12.88586158]
[1733743525957,6.16,226.91,226.74,20.0]
[1733743525958,6.16,226.97,226.85,12.88586158]
[1733743526133,6.16,226.97,226.86,12.88586158]
[1733743526343,6.16,226.97,226.85,12.88586158]
[1733743526540,6.16,226.97,226.81,0.66113016]
[1733743526742,6.16,226.97,226.81,13.54699174]
[1733743526953,6.16,226.97,226.8,12.88586158]
[1733743527158,6.16,226.97,226.8,0.66112817]
[1733743527335,6.16,226.97,226.86,20.53796043]
[1733743527532,6.16,226.97,226.87,20.53796043]
[1733743528156,6.16,226.97,226.87,21.19891005]
[1733743528528,6.074,227.02,226.9,20.53796043]
[1733743528731,6.074,227.02,226.88,20.53796043]
[1733743529055,6.074,227.02,226.89,21.19885123]
[1733743529244,6.074,227.02,226.9,20.53796043]
[1733743529443,6.074,227.02,226.91,21.19878118]
[1733743529859,8.3056,227.07,226.95,20.53796043]
[1733743530059,6.658,227.07,226.96,20.53796043]
[1733743530367,1.5247,227.14,226.99,20.53796043]
[1733743530571,6.658,227.13,227.0,20.53796043]
[1733743530732,6.658,227.13,227.02,20.53796043]
[1733743531057,6.658,227.13,226.97,21.19849257]
[1733743531268,6.658,227.13,226.97,0.66053214]
[1733743531563,6.658,227.13,226.95,20.53796043]
[1733743531750,6.658,227.13,226.93,22.14186043]
[1733743531956,20.0,227.1,226.91,20.53796043]
[1733743532331,20.0,227.1,226.92,20.53796043]
[1733743532662,20.0,227.1,226.91,20.53796043]
[1733743532870,20.0,227.1,226.9,20.53796043]
[1733743533745,20.0,227.1,226.91,20.53796043]
[1733743533947,20.0,227.1,226.89,20.53796043]
[1733743534149,20.0,227.1,226.87,20.53796043]
[1733743534454,20.0,227.1,226.86,22.19176043]
[1733743535177,20.0,227.1,226.87,20.53796043]
[1733743535752,20.0,227.1,226.88,20.53796043]
[1733743535975,6.658,227.13,226.94,20.53796043]
[1733743536272,6.658,227.13,226.89,0.66086682]
[1733743536273,6.658,227.13,226.9,20.53796043]
[1733743536567,6.658,227.13,226.89,20.53796043]
[1733743536769,6.658,227.13,226.92,20.53796043]
[1733743536970,6.658,227.13,226.9,20.53796043]
[1733743537180,20.0,227.1,226.91,20.53796043]
[1733743537862,20.0,227.1,226.88,20.53796043]
[1733743538268,20.0,227.06,226.87,20.53796043]
[1733743539782,1.5003,227.05,226.86,20.53796043]
[1733743540765,1.5003,227.05,226.87,20.53796043]
[1733743541367,1.5003,227.05,226.86,20.0]
[1733743541368,1.5003,227.05,226.89,20.53796043]
[1733743541553,1.5003,227.05,226.88,20.53796043]
[1733743541752,1.5003,227.05,226.86,20.0]
[1733743541753,1.5003,227.05,226.9,20.53796043]
[1733743541985,1.5003,227.05,226.94,20.53796043]
[1733743542345,1.5003,227.05,226.95,20.53796043]
[1733743542573,6.5264,227.09,226.97,20.53796043]
[1733743542779,6.5264,227.09,226.96,20.53796043]
[1733743542990,6.5264,227.09,226.97,20.53796043]
[1733743543486,6.5264,227.09,226.96,20.53796043]
[1733743544671,20.0,227.06,226.95,20.53796043]
[1733743545047,20.0,227.06,226.94,20.53796043]
[1733743546164,20.0,227.06,226.93,20.53796043]
[1733743546365,20.0,227.06,226.91,0.66087133]
[1733743546366,20.0,227.06,226.94,20.53796043]
[1733743546567,20.0,227.06,226.86,20.0]
[1733743546568,20.0,227.06,226.96,20.53796043]
[1733743546962,6.5264,227.09,227.01,20.53796043]
[1733743547170,6.5264,227.09,227.02,20.53796043]
[1733743547569,6.5264,227.09,227.01,20.53796043]
[1733743547958,6.4923,227.15,227.03,20.53796043]
[1733743548358,6.4923,227.15,227.05,20.53796043]
[1733743548756,6.4923,227.15,227.04,20.53796043]
[1733743549370,6.4923,227.15,227.05,20.53796043]
[1733743549681,20.0,227.12,227.05,20.53796043]
[1733743550563,6.4923,227.15,227.06,20.53796043]
[1733743550767,6.4923,227.15,227.05,20.53796043]
[1733743551183,6.4923,227.15,227.06,20.53796043]
[1733743551387,6.4923,227.15,227.08,20.53796043]
[1733743551764,6.4923,227.15,227.07,20.53796043]
[1733743552085,6.4923,227.15,227.05,20.53796043]
[1733743552391,6.4923,227.15,227.08,20.53796043]
[1733743552768,6.4923,227.15,227.07,20.53796043]
[1733743553065,7.901,227.2,227.09,20.53796043]
[1733743553266,20.0,227.17,227.1,20.53796043]
[1733743553460,20.0,227.17,227.11,20.53796043]
[1733743553792,20.0,227.17,227.09,20.53796043]
[1733743553970,20.0,227.17,227.1,20.53796043]
[1733743554792,20.0,227.17,227.12,20.53796043]
[1733743554975,6.4415,227.25,227.16,20.53796043]
[1733743555290,6.4415,227.25,227.18,20.53796043]
[1733743555465,6.4415,227.25,227.19,20.53796043]
[1733743556182,6.4415,227.25,227.18,20.53796043]
[1733743556999,6.4415,227.25,227.21,20.53796043]
[1733743557196,0.5117007,227.27,227.2,20.53796043]
[1733743557197,20.5117007,227.27,227.2,20.53796043]
[1733743558395,20.5117007,227.27,227.19,20.53796043]
[1733743558563,20.5117007,227.27,227.2,20.53796043]
[1733743559404,20.5117007,227.27,227.16,0.6600454]
[1733743559405,0.5117007,227.27,227.22,20.53796043]
[1733743559570,0.5117007,227.27,227.23,20.53796043]
[1733743560205,0.5117007,227.27,227.24,20.53796043]
[1733743560370,0.5117007,227.27,227.26,20.53796043]
[1733743562767,0.5117007,227.27,227.25,20.53796043]
[1733743563195,0.5117007,227.27,227.24,20.53796043]
[1733743563570,0.5117007,227.27,227.23,20.53796043]
[1733743563899,0.5117007,227.27,227.26,20.53796043]
[1733743565081,0.5117007,227.27,227.25,20.53796043]
[1733743565500,0.5117007,227.27,227.26,20.53796043]
[1733743566395,0.5117007,227.27,227.25,20.53796043]
[1733743567189,0.5117007,227.27,227.21,0.65990307]
[1733743567190,0.5117007,227.27,227.26,20.53796043]
[1733743567689,0.5117007,227.27,227.25,20.53796043]
[1733743567881,0.5117007,227.27,227.18,20.53796043]
[1733743568080,0.5117007,227.27,227.17,20.53796043]
[1733743568391,0.5117007,227.27,227.18,20.53796043]
[1733743568784,0.5117007,227.27,227.21,20.53796043]
[1733743569100,0.5117007,227.27,227.22,20.53796043]
[1733743569473,0.5117007,227.27,227.23,20.53796043]
[1733743569804,0.5117007,227.27,227.24,20.53796043]
[1733743570479,0.5117007,227.27,227.26,20.53796043]
[1733743570907,0.5117007,227.27,227.24,20.53796043]
[1733743571078,0.5117007,227.27,227.23,20.53796043]
[1733743571706,0.5117007,227.27,227.21,20.53796043]
[1733743571907,0.5117007,227.27,227.19,20.53796043]
[1733743572289,0.5117007,227.27,227.22,20.53796043]
[1733743572574,0.5117007,227.27,227.26,20.53796043]
[1733743573187,0.5117007,227.27,227.26,12.78983445]
[1733743574274,0.5117007,227.27,227.25,12.78983445]
[1733743574501,0.5117007,227.27,227.23,12.78983445]
[1733743574679,0.5117007,227.27,227.2,12.78983445]
[1733743574880,0.5117007,227.27,227.19,12.78983445]
[1733743575091,0.5117007,227.27,227.2,12.78983445]
[1733743575286,0.5117007,227.27,227.21,12.78983445]
[1733743575708,0.5117007,227.27,227.22,12.78983445]
[1733743576003,0.5117007,227.27,227.16,0.6599755]
[1733743576212,0.5117007,227.27,227.22,12.78983445]
[1733743576705,0.5117007,227.27,227.23,12.78983445]
[1733743576907,0.5117007,227.27,227.26,12.78983445]
[1733743577607,6.5625,227.35,227.3,136.4882993]
[1733743577786,1.6589,227.38,227.3,12.78983445]
[1733743578202,1.6589,227.38,227.29,12.78983445]
[1733743578712,1.6589,227.38,227.3,12.78983445]
[1733743578919,1.6589,227.38,227.31,12.78983445]
[1733743579087,1.6589,227.38,227.3,12.78983445]
[1733743579293,1.6589,227.38,227.3,20.45757694]
[1733743579989,6.5638,227.4,227.31,20.45757694]
[1733743580499,6.5638,227.4,227.3,20.45757694]
[1733743580818,6.5638,227.4,227.29,20.45757694]
[1733743580996,6.5638,227.4,227.29,21.11727903]
[1733743581318,6.5638,227.4,227.29,20.45757694]
[1733743581522,6.5638,227.4,227.33,20.45757694]
[1733743582212,20.0,227.42,227.35,20.45757694]
[1733743583294,1.6139,227.43,227.36,21.1171533]
[1733743584114,6.3037,227.45,227.38,20.45757694]
[1733743584513,6.3037,227.45,227.39,20.45757694]
[1733743585308,6.3037,227.45,227.37,20.45757694]
[1733743585688,20.0,227.42,227.36,20.45757694]
[1733743585894,20.0,227.42,227.34,0.65945352]
[1733743585895,20.0,227.42,227.34,20.45757694]
[1733743586205,20.0,227.42,227.32,20.45757694]
[1733743586603,20.0,227.42,227.34,20.45757694]
[1733743587625,20.0,227.42,227.35,20.45757694]
[1733743587825,20.0,227.42,227.37,20.45757694]
[1733743588128,20.0,227.42,227.38,20.45757694]
[1733743588491,1.5695,227.49,227.28,1.6068]
[1733743588492,1.5695,227.49,227.41,20.45757694]
[1733743588724,1.5695,227.49,227.42,20.45757694]
[1733743588893,1.5695,227.49,227.39,20.45757694]
[1733743589326,1.5695,227.49,227.41,20.45757694]
[1733743589621,1.5695,227.49,227.4,20.45757694]
[1733743589825,20.0,227.48,227.4,20.45757694]
[1733743590514,20.0,227.48,227.39,20.45757694]
[1733743590719,20.0,227.48,227.41,20.45757694]
[1733743591201,20.0,227.48,227.39,20.45757694]
[1733743591397,20.0,227.48,227.33,0.65943486]
[1733743591602,20.0,227.48,227.34,20.45757694]
[1733743591909,20.0,227.48,227.33,20.45757694]
[1733743592114,20.0,227.48,227.35,20.45757694]
[1733743592303,20.0,227.48,227.36,20.45757694]
[1733743592504,20.0,227.48,227.29,0.65956976]
[1733743592505,20.0,227.48,227.35,20.45757694]
[1733743592694,20.0,227.48,227.29,0.65956976]
[1733743592695,20.0,227.48,227.37,20.45757694]
[1733743593130,20.0,227.48,227.4,20.45757694]
[1733743593522,20.0,227.48,227.38,20.45757694]
[1733743593735,20.0,227.48,227.37,20.45757694]
[1733743593918,20.0,227.48,227.35,20.45757694]
[1733743594235,20.0,227.48,227.34,20.45757694]
[1733743594402,20.0,227.48,227.35,20.45757694]
[1733743594606,20.0,227.48,227.34,20.45757694]
[1733743594924,20.0,227.48,227.36,20.45757694]
[1733743595129,20.0,227.48,227.35,20.45757694]
[1733743596300,20.0,227.48,227.36,20.45757694]
[1733743596831,20.0,227.48,227.39,20.45757694]
[1733743597561,20.0,227.48,227.31,0.65947591]
[1733743597562,20.0,227.48,227.36,20.45757694]
[1733743597904,20.0,227.48,227.37,20.45757694]
[1733743598300,20.0,227.48,227.36,20.45757694]
[1733743598730,20.0,227.48,227.37,20.45757694]
[1733743599234,20.0,227.48,227.39,12.77649551]
[1733743600325,1.5695,227.49,227.41,12.77649551]
[1733743601016,1.5695,227.49,227.42,12.77649551]
[1733743601341,1.5695,227.49,227.41,12.77649551]
[1733743602914,1.5695,227.49,227.3,63.446884]
[1733743602915,20.0,227.48,227.38,12.77649551]
[1733743603126,20.0,227.48,227.37,12.77649551]
[1733743603550,20.0,227.48,227.36,12.77649551]
[1733743604118,20.0,227.48,227.37,12.77649551]
[1733743604318,20.0,227.48,227.38,12.77649551]
[1733743608043,20.0,227.48,227.31,0.65949843]
[1733743608044,20.0,227.48,227.34,12.77649551]
[1733743608253,20.0,227.48,227.35,12.77649551]
[1733743608631,20.0,227.48,227.34,12.77649551]
[1733743609764,20.0,227.48,227.35,12.77649551]
[1733743610270,20.0,227.48,227.32,12.77649551]
[1733743610877,6.612,227.47,227.31,12.77649551]
[1733743611254,20.0,227.44,227.29,12.77649551]
[1733743611577,1.5796,227.43,227.29,12.77649551]
[1733743611759,1.5796,227.43,227.23,2.16178283]
[1733743611953,1.5796,227.43,227.3,12.77649551]
[1733743612147,1.5796,227.43,227.31,12.77649551]
[1733743612577,1.5796,227.43,227.33,12.77649551]
[1733743612967,1.5796,227.43,227.32,12.77649551]
[1733743613534,1.5796,227.43,227.27,0.65964332]
[1733743613535,1.5796,227.43,227.33,12.77649551]
[1733743614145,1.5796,227.43,227.35,12.77649551]
[1733743614663,1.5796,227.43,227.36,12.77649551]
[1733743615843,1.5796,227.43,227.35,12.77649551]
[1733743616048,1.5796,227.43,227.34,12.77649551]
[1733743616637,1.5796,227.43,227.35,12.77649551]
[1733743617145,1.5796,227.43,227.29,0.65961886]
[1733743617345,1.5796,227.43,227.34,12.77649551]